[Event "53rd Indian Junior Open-ch 2024"]
[Site "Karnal"]
[Date "2024.09.18"]
[Round "4.4"]
[White "Lakshmi Charan Naidu G"]
[Black "Daksh Goyal"]
[Result "0-1"]
[WhiteElo "1912"]
[BlackElo "2026"]
[PlyCount "62"]
[EventDate "2024.09.16"]
[EventType "swiss"]
[EventCountry "IND"]
[TimeControl "5400+30"]

1. d4 {[%emt 0:01:00]} d5 {[%emt 0:01:24]} 2. Nf3 {[%emt 0:00:29]} Nf6 {[%emt 0:00:17]} 3. Bf4 {[%emt 0:00:08]} c5 {[%emt 0:00:03]} 4. e3 {[%emt 0:00:07]} Nc6 {[%emt 0:00:03]} 5. Nbd2 {[%emt 0:00:06]} c4 {[%emt 0:01:07]} 6. c3 {[%emt 0:02:36]} e6 {[%emt 0:00:19]} 7. Qc2 {[%emt 0:03:01]} Nh5 {[%emt 0:01:19]} 8. Bg5 {[%emt 0:06:28]} f6 {[%emt 0:04:11]} 9. Bh4 {[%emt 0:01:26]} g5 {[%emt 0:06:13]} 10. g4 {[%emt 0:07:39]} gxh4 {[%emt 0:13:43]} 11. gxh5 {[%emt 0:00:06]} Bd7 {[%emt 0:04:40]} 12. e4 {[%emt 0:09:41]} Qc7 {[%emt 0:02:08]} 13. O-O-O {[%emt 0:02:59]} Bh6 {[%emt 0:07:52]} 14. Bh3 {[%emt 0:03:28]} Qf4 {[%emt 0:04:25]} 15. Kb1 {[%emt 0:06:11]} O-O-O {[%emt 0:01:28]} 16. Rhg1 {[%emt 0:05:02]} f5 {[%emt 0:04:40]} 17. exd5 {[%emt 0:06:04]} exd5 {[%emt 0:00:23]} 18. Rde1 {[%emt 0:06:15]} Rhf8 {[%emt 0:03:28]} 19. Re3 {[%emt 0:06:06]} Be8 {[%emt 0:06:05]} 20. Rge1 {[%emt 0:07:28]} Bxh5 {[%emt 0:01:26]} 21. b3 {[%emt 0:00:35]} cxb3 {[%emt 0:03:36]} 22. Qxb3 {[%emt 0:00:50]} Rf6 {[%emt 0:02:31]} 23. Ka1 {[%emt 0:01:37]} Kb8 {[%emt 0:10:08]} 24. Bg2 {[%emt 0:04:38]} Qd6 {[%emt 0:03:40]} 25. Rd3 {[%emt 0:00:38]} Re6 {[%emt 0:03:02]} 26. Rb1 {[%emt 0:06:47]} Qc7 {[%emt 0:00:59]} 27. Nxh4 {[%emt 0:02:13]} Be2 {[%emt 0:03:44]} 28. Bxd5 {[%emt 0:00:54]} Na5 {[%emt 0:05:17]} 29. Qa4 {[%emt 0:00:18]} Bxd3 {[%emt 0:00:20]} 30. Bxe6 {[%emt 0:00:07]} Qxc3+ {[%emt 0:00:16]} 31. Rb2 {[%emt 0:00:40]} Bxd2 {[%emt 0:00:26]} 0-1

[Event "53rd Indian Junior Open-ch 2024"]
[Site "Karnal"]
[Date "2024.09.18"]
[Round "4.6"]
[White "Manish Anto Cristiano F"]
[Black "Nigash G"]
[Result "1/2-1/2"]
[WhiteElo "2364"]
[BlackElo "2001"]
[PlyCount "48"]
[EventDate "2024.09.16"]
[EventType "swiss"]
[EventCountry "IND"]
[TimeControl "5400+30"]

1. Nf3 {[%emt 0:00:05]} d5 {[%emt 0:00:20]} 2. d4 {[%emt 0:00:50]} e6 {[%emt 0:00:31]} 3. g3 {[%emt 0:01:35]} Nf6 {[%emt 0:01:55]} 4. Bg2 {[%emt 0:00:15]} c5 {[%emt 0:01:20]} 5. O-O {[%emt 0:00:59]} cxd4 {[%emt 0:00:09]} 6. Nxd4 {[%emt 0:00:19]} e5 {[%emt 0:00:10]} 7. Nb3 {[%emt 0:00:44]} Be7 {[%emt 0:01:24]} 8. Bg5 {[%emt 0:00:49]} e4 {[%emt 0:03:56]} 9. N1d2 {[%emt 0:08:34]} Be6 {[%emt 0:02:57]} 10. Rc1 {[%emt 0:04:50]} b5 {[%emt 0:03:36]} 11. Nd4 {[%emt 0:03:22]} Qb6 {[%emt 0:01:03]} 12. c3 {[%emt 0:03:01]} Nbd7 {[%emt 0:04:03]} 13. f3 {[%emt 0:02:29]} Ng4 {[%emt 0:04:06]} 14. Bxe7 {[%emt 0:08:20]} Ne3 {[%emt 0:00:09]} 15. Qe1 {[%emt 0:17:45]} Nxf1 {[%emt 0:00:34]} 16. Nxf1 {[%emt 0:01:40]} Kxe7 {[%emt 0:01:51]} 17. fxe4 {[%emt 0:00:05]} dxe4 {[%emt 0:00:40]} 18. Bxe4 {[%emt 0:43:48]} Rac8 {[%emt 0:01:16]} 19. Bg2 {[%emt 0:00:00]} Rhe8 {[%emt 0:00:09]} 20. Be4 {[%emt 0:00:00]} Red8 {[%emt 0:00:05]} 21. Bg2 {[%emt 0:00:00]} Re8 {[%emt 0:00:03]} 22. Be4 {[%emt 0:00:00]} Red8 {[%emt 0:00:03]} 23. Bg2 {[%emt 0:00:00]} Re8 {[%emt 0:00:18]} 24. Be4 {[%emt 0:00:00]} Red8 {[%emt 0:00:07]} 1/2-1/2

[Event "53rd Indian Junior Open-ch 2024"]
[Site "Karnal"]
[Date "2024.09.18"]
[Round "4.7"]
[White "Yashwant B"]
[Black "Adireddy Arjun"]
[Result "1/2-1/2"]
[WhiteElo "1975"]
[BlackElo "2343"]
[PlyCount "45"]
[EventDate "2024.09.16"]
[EventType "swiss"]
[EventCountry "IND"]
[TimeControl "5400+30"]

1. e4 {[%emt 0:00:17]} c5 {[%emt 0:00:18]} 2. Nf3 {[%emt 0:00:12]} e6 {[%emt 0:00:08]} 3. c3 {[%emt 0:00:12]} Nf6 {[%emt 0:01:00]} 4. e5 {[%emt 0:00:14]} Nd5 {[%emt 0:00:06]} 5. d4 {[%emt 0:00:06]} cxd4 {[%emt 0:00:38]} 6. cxd4 {[%emt 0:00:07]} d6 {[%emt 0:00:30]} 7. Bc4 {[%emt 0:00:31]} Nc6 {[%emt 0:01:03]} 8. O-O {[%emt 0:00:16]} Be7 {[%emt 0:00:05]} 9. Qe2 {[%emt 0:00:37]} O-O {[%emt 0:02:19]} 10. Nc3 {[%emt 0:02:30]} Nxc3 {[%emt 0:21:25]} 11. bxc3 {[%emt 0:00:07]} d5 {[%emt 0:00:03]} 12. Bd3 {[%emt 0:00:20]} Bd7 {[%emt 0:00:36]} 13. g3 {[%emt 0:00:53]} Na5 {[%emt 0:06:01]} 14. h4 {[%emt 0:00:48]} Rc8 {[%emt 0:29:17]} 15. Ng5 {[%emt 0:06:17]} g6 {[%emt 0:00:09]} 16. Nxh7 {[%emt 0:02:21]} Kxh7 {[%emt 0:00:06]} 17. Qh5+ {[%emt 0:00:05]} Kg8 {[%emt 0:00:07]} 18. Bxg6 {[%emt 0:00:43]} fxg6 {[%emt 0:00:05]} 19. Qxg6+ {[%emt 0:00:04]} Kh8 {[%emt 0:00:04]} 20. Qh6+ {[%emt 0:00:05]} Kg8 {[%emt 0:00:03]} 21. Qg6+ {[%emt 0:00:06]} Kh8 {[%emt 0:00:04]} 22. Qh5+ {[%emt 0:00:38]} Kg8 {[%emt 0:00:05]} 23. Qg6+ {[%emt 0:00:06]} 1/2-1/2

[Event "53rd Indian Junior Open-ch 2024"]
[Site "Karnal"]
[Date "2024.09.18"]
[Round "4.8"]
[White "Vidit Sethi"]
[Black "Sourath Biswas"]
[Result "0-1"]
[WhiteElo "1819"]
[BlackElo "2305"]
[PlyCount "54"]
[EventDate "2024.09.16"]
[EventType "swiss"]
[EventCountry "IND"]
[TimeControl "5400+30"]

1. d4 {[%emt 0:00:05]} Nf6 {[%emt 0:00:04]} 2. c4 {[%emt 0:00:11]} g6 {[%emt 0:00:05]} 3. Nc3 {[%emt 0:00:07]} Bg7 {[%emt 0:00:03]} 4. e4 {[%emt 0:00:09]} O-O {[%emt 0:00:04]} 5. Bd3 {[%emt 0:00:07]} c5 {[%emt 0:03:07]} 6. d5 {[%emt 0:00:14]} e6 {[%emt 0:00:10]} 7. Nge2 {[%emt 0:03:05]} exd5 {[%emt 0:00:55]} 8. cxd5 {[%emt 0:00:11]} Re8 {[%emt 0:04:22]} 9. O-O {[%emt 0:00:52]} d6 {[%emt 0:01:55]} 10. h3 {[%emt 0:00:33]} c4 {[%emt 0:00:28]} 11. Bxc4 {[%emt 0:07:23]} Nxe4 {[%emt 0:00:06]} 12. Be3 {[%emt 0:01:07]} Nd7 {[%emt 0:24:55]} 13. Rc1 {[%emt 0:05:04]} Nxc3 {[%emt 0:04:24]} 14. Nxc3 {[%emt 0:02:05]} a6 {[%emt 0:00:09]} 15. a4 {[%emt 0:07:13]} Qh4 {[%emt 0:00:15]} 16. Be2 {[%emt 0:07:34]} Nc5 {[%emt 0:00:50]} 17. a5 {[%emt 0:06:15]} Qb4 {[%emt 0:00:51]} 18. Bxc5 {[%emt 0:00:57]} dxc5 {[%emt 0:00:09]} 19. Na4 {[%emt 0:10:47]} Rxe2 {[%emt 0:08:16]} 20. Qxe2 {[%emt 0:01:16]} Qxa4 {[%emt 0:00:04]} 21. Rxc5 {[%emt 0:01:18]} Bf8 {[%emt 0:01:09]} 22. Rcc1 {[%emt 0:20:37]} Bd6 {[%emt 0:01:08]} 23. Rfd1 {[%emt 0:02:52]} Bd7 {[%emt 0:00:08]} 24. Ra1 {[%emt 0:04:07]} Qf4 {[%emt 0:00:08]} 25. g3 {[%emt 0:00:26]} Qf5 {[%emt 0:00:03]} 26. h4 {[%emt 0:00:37]} Re8 {[%emt 0:00:03]} 27. Qd3 {[%emt 0:00:56]} Re1+ {[%emt 0:00:04]} 0-1

[Event "53rd Indian Junior Open-ch 2024"]
[Site "Karnal"]
[Date "2024.09.18"]
[Round "4.9"]
[White "Nagarkatte Vedant"]
[Black "Arul Prakash N"]
[Result "0-1"]
[WhiteElo "2260"]
[BlackElo "1922"]
[PlyCount "96"]
[EventDate "2024.09.16"]
[EventType "swiss"]
[EventCountry "IND"]
[TimeControl "5400+30"]

1. e4 {[%emt 1:31:00]} c5 2. Nf3 {[%emt 0:00:30]} d6 {[%emt 1:31:30]} 3. d4 {[%emt 0:00:30]} cxd4 {[%emt 0:00:30]} 4. Nxd4 {[%emt 0:00:30]} Nf6 {[%emt 0:00:30]} 5. Nc3 {[%emt 0:00:30]} a6 {[%emt 0:00:30]} 6. Be3 {[%emt 0:00:30]} e6 {[%emt 0:00:30]} 7. Be2 {[%emt 0:00:30]} Be7 {[%emt 0:00:30]} 8. a4 {[%emt 0:00:30]} b6 {[%emt 0:00:30]} 9. f4 {[%emt 0:00:30]} Bb7 {[%emt 0:00:30]} 10. Bf3 {[%emt 0:00:30]} Nbd7 {[%emt 0:00:30]} 11. Qe2 {[%emt 0:00:30]} Rc8 {[%emt 0:00:30]} 12. Bf2 {[%emt 0:00:30]} Qc7 {[%emt 0:00:30]} 13. O-O {[%emt 0:00:30]} O-O {[%emt 0:00:30]} 14. Rfd1 {[%emt 0:00:30]} g6 {[%emt 0:00:30]} 15. Nb3 e5 {[%emt 0:00:30]} 16. f5 {[%emt 0:01:00]} Qc4 {[%emt 0:00:30]} 17. Qe3 {[%emt 0:00:30]} gxf5 {[%emt 0:00:30]} 18. Qg5+ {[%emt 0:00:30]} Kh8 {[%emt 0:00:30]} 19. Qxf5 {[%emt 0:00:30]} Qe6 {[%emt 0:00:30]} 20. Qxe6 {[%emt 0:00:30]} fxe6 {[%emt 0:00:30]} 21. Rd3 {[%emt 0:00:30]} d5 {[%emt 0:00:30]} 22. exd5 {[%emt 0:00:30]} exd5 {[%emt 0:00:30]} 23. Nxd5 {[%emt 0:00:30]} Bxd5 {[%emt 0:00:30]} 24. Bxd5 {[%emt 0:00:30]} Rxc2 {[%emt 0:00:30]} 25. Bg3 {[%emt 0:00:30]} Nc5 {[%emt 0:00:30]} 26. Nxc5 {[%emt 0:00:30]} Bxc5+ {[%emt 0:00:30]} 27. Kh1 {[%emt 0:00:30]} e4 {[%emt 0:00:30]} 28. Rdd1 {[%emt 0:00:30]} Nxd5 {[%emt 0:00:30]} 29. Rxd5 e3 {[%emt 0:00:30]} 30. Rg5 {[%emt 0:01:00]} Bd4 {[%emt 0:00:30]} 31. Be5+ {[%emt 0:00:30]} Bxe5 {[%emt 0:00:30]} 32. Rxe5 {[%emt 0:00:30]} Rcf2 {[%emt 0:00:30]} 33. h3 {[%emt 0:00:30]} e2 {[%emt 0:00:30]} 34. Rg1 {[%emt 0:00:30]} Kg7 {[%emt 0:00:30]} 35. Kh2 {[%emt 0:00:30]} Kf6 {[%emt 0:00:30]} 36. Re3 {[%emt 0:00:30]} Rg8 {[%emt 0:00:30]} 37. Re4 {[%emt 0:00:30]} h5 {[%emt 0:00:30]} 38. Re3 {[%emt 0:00:30]} h4 {[%emt 0:00:30]} 39. b4 {[%emt 0:00:30]} Kf5 {[%emt 0:00:30]} 40. b5 {[%emt 0:00:30]} a5 {[%emt 0:00:30]} 41. Re7 {[%emt 0:00:30]} Kf4 {[%emt 0:00:30]} 42. Rf7+ {[%emt 0:00:30]} Ke3 {[%emt 0:00:30]} 43. Re7+ Kd2 {[%emt 0:00:30]} 44. Rd7+ {[%emt 0:01:00]} Kc2 {[%emt 0:00:30]} 45. Re7 {[%emt 0:00:30]} Rg3 {[%emt 0:00:30]} 46. Re6 {[%emt 0:00:30]} Kd2 {[%emt 0:00:30]} 47. Rd6+ {[%emt 0:00:30]} Rd3 {[%emt 0:00:30]} 48. Re6 {[%emt 0:00:30]} Rf1 {[%emt 0:00:30]} 0-1

[Event "53rd Indian Junior Open-ch 2024"]
[Site "Karnal"]
[Date "2024.09.18"]
[Round "4.10"]
[White "Guru Prakash, A.."]
[Black "Kushal O"]
[Result "1/2-1/2"]
[WhiteElo "1870"]
[BlackElo "2130"]
[PlyCount "136"]
[EventDate "2024.09.16"]
[EventType "swiss"]
[EventCountry "IND"]
[TimeControl "5400+30"]

1. e4 {[%emt 1:31:00]} c5 {[%emt 1:31:00]} 2. Nf3 {[%emt 0:00:30]} d6 {[%emt 0:00:30]} 3. d4 {[%emt 0:00:30]} cxd4 {[%emt 0:00:30]} 4. Nxd4 {[%emt 0:00:30]} Nf6 {[%emt 0:00:30]} 5. Nc3 {[%emt 0:00:30]} a6 {[%emt 0:00:30]} 6. h3 {[%emt 0:00:30]} e5 {[%emt 0:00:30]} 7. Nde2 {[%emt 0:00:30]} h5 {[%emt 0:00:30]} 8. g3 {[%emt 0:00:30]} Be7 {[%emt 0:00:30]} 9. Bg2 {[%emt 0:00:30]} b5 {[%emt 0:00:30]} 10. O-O {[%emt 0:00:30]} Nbd7 {[%emt 0:00:30]} 11. Nd5 {[%emt 0:00:30]} Nxd5 {[%emt 0:00:30]} 12. exd5 {[%emt 0:00:30]} h4 {[%emt 0:00:30]} 13. g4 {[%emt 0:00:30]} Bg5 {[%emt 0:00:30]} 14. f4 {[%emt 0:00:30]} exf4 {[%emt 0:00:30]} 15. Bxf4 {[%emt 0:00:30]} Bxf4 {[%emt 0:00:30]} 16. Rxf4 {[%emt 0:00:30]} O-O {[%emt 0:00:30]} 17. Nd4 {[%emt 0:00:30]} Ne5 {[%emt 0:00:30]} 18. Nf3 {[%emt 0:00:30]} Ng6 {[%emt 0:00:30]} 19. Rd4 {[%emt 0:00:30]} f5 {[%emt 0:00:30]} 20. g5 {[%emt 0:00:30]} Ne5 {[%emt 0:00:30]} 21. Rxh4 {[%emt 0:00:30]} Nxf3+ {[%emt 0:00:30]} 22. Qxf3 {[%emt 0:00:30]} Qxg5 {[%emt 0:00:30]} 23. Rd4 {[%emt 0:00:30]} Re8 {[%emt 0:00:30]} 24. h4 {[%emt 0:00:30]} Qf6 {[%emt 0:00:30]} 25. c3 {[%emt 0:00:30]} Ra7 {[%emt 0:00:30]} 26. Rf1 {[%emt 0:00:30]} Rae7 {[%emt 0:00:30]} 27. Qg3 {[%emt 0:00:30]} Bd7 {[%emt 0:00:30]} 28. Rdf4 {[%emt 0:00:30]} Re5 {[%emt 0:00:30]} 29. a3 {[%emt 0:00:30]} Kf7 {[%emt 0:00:30]} 30. Qh3 {[%emt 0:00:30]} Rh8 {[%emt 0:00:30]} 31. R1f3 {[%emt 0:00:30]} Rxd5 {[%emt 0:00:30]} 32. Rd3 {[%emt 0:00:30]} Rxd3 {[%emt 0:00:30]} 33. Qxd3 {[%emt 0:00:30]} Rxh4 {[%emt 0:00:30]} 34. Rxh4 {[%emt 0:00:30]} Qxh4 {[%emt 0:00:30]} 35. Qxd6 {[%emt 0:00:30]} Qe1+ {[%emt 0:00:30]} 36. Kh2 Qh4+ {[%emt 0:00:30]} 37. Kg1 {[%emt 0:01:00]} Qe1+ {[%emt 0:00:30]} 38. Kh2 {[%emt 0:00:30]} Be6 {[%emt 0:00:30]} 39. Qxa6 {[%emt 0:00:30]} Qh4+ {[%emt 0:00:30]} 40. Kg1 {[%emt 0:00:30]} Qe1+ {[%emt 0:00:30]} 41. Kh2 {[%emt 0:00:30]} Qe5+ {[%emt 0:00:30]} 42. Kg1 {[%emt 0:00:30]} Qe3+ {[%emt 0:00:30]} 43. Kh1 {[%emt 0:00:30]} Qh6+ {[%emt 0:00:30]} 44. Kg1 {[%emt 0:00:30]} Qe3+ {[%emt 0:00:30]} 45. Kh1 {[%emt 0:00:30]} Qc1+ {[%emt 0:00:30]} 46. Kh2 {[%emt 0:00:30]} Qxb2 {[%emt 0:00:30]} 47. Qb7+ {[%emt 0:00:30]} Kf6 {[%emt 0:00:30]} 48. a4 {[%emt 0:00:30]} Qxc3 {[%emt 0:00:30]} 49. axb5 {[%emt 0:00:30]} Qe5+ {[%emt 0:00:30]} 50. Kg1 {[%emt 0:00:30]} Qe1+ 51. Kh2 {[%emt 0:00:30]} Qh4+ {[%emt 0:01:00]} 52. Kg1 {[%emt 0:00:30]} Qd4+ 53. Kh2 {[%emt 0:00:30]} Qe5+ {[%emt 0:01:00]} 54. Kg1 {[%emt 0:00:30]} f4 {[%emt 0:00:30]} 55. b6 {[%emt 0:00:30]} Qe1+ {[%emt 0:00:30]} 56. Kh2 {[%emt 0:00:30]} Qg3+ {[%emt 0:00:30]} 57. Kh1 {[%emt 0:00:30]} Qh4+ {[%emt 0:00:30]} 58. Kg1 {[%emt 0:00:30]} Qe1+ {[%emt 0:00:30]} 59. Kh2 {[%emt 0:00:30]} Qg3+ {[%emt 0:00:30]} 60. Kh1 {[%emt 0:00:30]} Qe1+ {[%emt 0:00:30]} 61. Kh2 {[%emt 0:00:30]} Qe5 {[%emt 0:00:30]} 62. Qe4 {[%emt 0:00:30]} Qh5+ {[%emt 0:00:30]} 63. Kg1 {[%emt 0:00:30]} Qd1+ {[%emt 0:00:30]} 64. Kh2 {[%emt 0:00:30]} Qd6 {[%emt 0:00:30]} 65. Qc6 {[%emt 0:00:30]} Qe5 {[%emt 0:00:30]} 66. Qe4 {[%emt 0:00:30]} Qh5+ {[%emt 0:00:30]} 67. Kg1 {[%emt 0:00:30]} Qd1+ {[%emt 0:00:30]} 68. Kh2 {[%emt 0:00:30]} Qh5+ {[%emt 0:00:30]} 1/2-1/2

[Event "53rd Indian Junior Open-ch 2024"]
[Site "Karnal"]
[Date "2024.09.19"]
[Round "5.2"]
[White "Madhvendra Pratap Sharma"]
[Black "Sri Charan Sandipagu"]
[Result "0-1"]
[ECO "E94"]
[WhiteElo "2061"]
[BlackElo "1964"]
[Annotator "RC"]
[PlyCount "106"]
[EventDate "2024.09.16"]
[EventType "swiss"]
[EventCountry "IND"]
[SourceTitle "playchess.com"]
[Source "ChessBase"]
[SourceQuality "1"]
[TimeControl "5400+30"]

1. Nf3 {[%emt 0:00:13]} Nf6 {[%emt 0:00:11]} 2. c4 {[%emt 0:00:06]} g6 {[%emt 0:00:12]} 3. Nc3 {[%emt 0:00:05]} Bg7 {[%emt 0:00:13]} 4. e4 {[%emt 0:00:09]} d6 {[%emt 0:00:34]} 5. d4 {[%emt 0:00:06]} O-O {[%emt 0:00:16]} 6. Be2 {[%emt 0:00:21]} e5 {[%emt 0:00:20]} 7. O-O {[%emt 0:00:11]} exd4 {[%emt 0:02:47]} 8. Nxd4 {[%emt 0:00:13]} Re8 {[%emt 0:00:05]} 9. f3 {[%emt 0:04:19]} c6 {[%emt 0:00:15]} 10. Nc2 {[%emt 0:07:23]} Na6 {[%emt 0:09:51]} 11. Bf4 {[%emt 0:10:09]} d5 {[%emt 0:09:42]} 12. cxd5 {[%emt 0:04:57]} cxd5 {[%emt 0:00:11]} 13. exd5 {[%emt 0:00:52]} Bf5 {[%emt 0:02:35]} 14. Bb5 {[%emt 0:06:03]} Qb6+ {[%emt 0:09:29]} 15. Kh1 {[%emt 0:04:10]} Red8 {[%emt 0:03:51]} 16. Ne3 {[%emt 0:01:56]} Bd7 {[%emt 0:27:14]} 17. Nc4 {[%emt 0:10:23]} Qc5 {[%emt 0:00:20]} 18. Be3 {[%emt 0:01:07]} Qe7 {[%emt 0:04:43]} 19. Bxa6 {[%emt 0:04:18]} bxa6 {[%emt 0:00:32]} 20. Re1 {[%emt 0:00:18]} Be6 {[%emt 0:10:35]} 21. Bg5 {[%emt 0:06:56]} h6 {[%emt 0:03:19]} 22. d6 {[%emt 0:02:19]} Qf8 {[%emt 0:01:03]} 23. Bxf6 {[%emt 0:02:22]} Bxf6 {[%emt 0:00:06]} 24. Ne4 {[%emt 0:00:19]} Bg7 {[%emt 0:00:55]} 25. Rc1 {[%emt 0:01:49]} Bxc4 {[%emt 0:04:34]} 26. Rxc4 {[%emt 0:00:06]} f5 {[%emt 0:00:21]} 27. Nc5 {[%emt 0:09:27]} Qxd6 {[%emt 0:00:50]} 28. Qb3 {[%emt 0:00:19]} Rab8 {[%emt 0:03:05]} 29. Rd4+ {[%emt 0:13:00]} Rxb3 {[%emt 0:00:22]} 30. Rxd6 {[%emt 0:00:03]} Rxd6 {[%emt 0:00:10]} 31. Nxb3 {[%emt 0:00:03]} Bxb2 {[%emt 0:00:22]} 32. g3 {[%emt 0:00:43]} Kf7 {[%emt 0:00:14]} 33. Re2 {[%emt 0:00:07]} Bc3 {[%emt 0:01:52]} 34. Kg2 {[%emt 0:00:26]} Bb4 {[%emt 0:02:11]} 35. Rc2 {[%emt 0:00:51]} g5 {[%emt 0:01:36]} 36. h4 {[%emt 0:00:58]} gxh4 {[%emt 0:00:45]} 37. gxh4 {[%emt 0:00:06]} Kg6 {[%emt 0:01:11]} 38. Kg3 {[%emt 0:02:06]} Be1+ {[%emt 0:00:16]} 39. Kf4 {[%emt 0:03:13]} Bxh4 {[%emt 0:00:23]} 40. Ke5 {[%emt 0:00:13]} Rf6 {[%emt 0:01:22]} 41. Nd4 {[%emt 0:01:59]} Bg3+ {[%emt 0:00:31]} 42. f4 {[%emt 0:00:07]} h5 {[%emt 0:00:21]} 43. Rc8 {[%emt 0:00:10]} h4 {[%emt 0:00:34]} 44. Rg8+ {[%emt 0:03:05]} Kf7 {[%emt 0:00:02]} 45. Rg5 {[%emt 0:01:02]} Bf2 {[%emt 0:00:44]} 46. Nxf5 {[%emt 0:00:26]} Re6+ {[%emt 0:00:15]} 47. Kd5 {[%emt 0:00:07]} Rb6 {[%emt 0:01:11]} 48. Nd6+ {[%emt 0:00:10]} Kf8 {[%emt 0:00:43]} 49. f5 {[%emt 0:00:44]} Bg3 {[%emt 0:00:40]} 50. Nc4 {[%emt 0:01:14]} Rh6 {[%emt 0:00:41]} 51. Nd2 {[%emt 0:02:37]} Bf4 {[%emt 0:00:20]} 52. Rg2 {[%emt 0:00:06]} h3 {[%emt 0:00:07]} 53. Rf2 {[%emt 0:01:29]} Bxd2 {[%emt 0:00:07]} 0-1

[Event "53rd Indian Junior Open-ch 2024"]
[Site "Karnal"]
[Date "2024.09.19"]
[Round "5.4"]
[White "Arul Prakash N"]
[Black "Mukund Hemant Agarwal"]
[Result "1-0"]
[ECO "D59"]
[WhiteElo "1922"]
[BlackElo "2073"]
[Annotator "RC"]
[PlyCount "91"]
[EventDate "2024.09.16"]
[EventType "swiss"]
[EventCountry "IND"]
[SourceTitle "playchess.com"]
[Source "ChessBase"]
[SourceQuality "1"]
[TimeControl "5400+30"]

1. d4 {[%emt 0:04:16]} Nf6 {[%emt 0:00:13]} 2. c4 {[%emt 0:00:07]} e6 {[%emt 0:00:02]} 3. Nf3 {[%emt 0:00:06]} d5 {[%emt 0:01:37]} 4. Nc3 {[%emt 0:00:07]} Be7 {[%emt 0:00:58]} 5. Bg5 {[%emt 0:00:55]} h6 {[%emt 0:00:35]} 6. Bh4 {[%emt 0:01:05]} O-O {[%emt 0:00:57]} 7. e3 {[%emt 0:00:16]} b6 {[%emt 0:00:59]} 8. cxd5 {[%emt 0:00:26]} Nxd5 {[%emt 0:01:53]} 9. Nxd5 {[%emt 0:03:34]} exd5 {[%emt 0:14:58]} 10. Bxe7 {[%emt 0:00:24]} Qxe7 {[%emt 0:00:03]} 11. Be2 {[%emt 0:00:28]} Be6 {[%emt 0:00:23]} 12. Rc1 {[%emt 0:00:48]} c5 {[%emt 0:05:28]} 13. dxc5 {[%emt 0:04:29]} bxc5 {[%emt 0:00:37]} 14. O-O {[%emt 0:00:08]} Rc8 {[%emt 0:08:35]} 15. Qc2 {[%emt 0:04:59]} a5 {[%emt 0:07:50]} 16. e4 {[%emt 0:02:45]} d4 {[%emt 0:19:19]} 17. Nd2 {[%emt 0:00:29]} Qa7 {[%emt 0:06:52]} 18. Kh1 {[%emt 0:01:03]} Nd7 {[%emt 0:02:36]} 19. f4 {[%emt 0:01:13]} a4 {[%emt 0:11:20]} 20. Bc4 {[%emt 0:17:29]} Bxc4 {[%emt 0:15:15]} 21. Nxc4 {[%emt 0:00:41]} Qa6 {[%emt 0:00:00]} 22. e5 {[%emt 0:55:42]} Re8 {[%emt 0:00:00]} 23. Rce1 {[%emt 0:00:00]} Rad8 {[%emt 0:00:00]} 24. Rf3 {[%emt 0:00:00]} Nb6 {[%emt 0:00:00]} 25. Nd2 {[%emt 0:00:00]} c4 {[%emt 0:00:00]} 26. Rg3 {[%emt 0:00:00]} Qa5 {[%emt 0:00:42]} 27. Rf1 {[%emt 0:00:00]} d3 {[%emt 0:00:31]} 28. Qd1 {[%emt 0:00:00]} Kh8 {[%emt 0:01:10]} 29. Qg4 {[%emt 0:00:00]} Rg8 {[%emt 0:00:04]} 30. Ne4 {[%emt 0:00:00]} Qd5 {[%emt 0:00:37]} 31. Qf5 {[%emt 0:00:00]} d2 {[%emt 0:01:43]} 32. Ng5 {[%emt 0:00:00]} g6 {[%emt 0:00:19]} 33. Qf6+ {[%emt 0:00:00]} Rg7 {[%emt 0:00:01]} 34. Nxf7+ {[%emt 0:00:00]} Kh7 {[%emt 0:00:47]} 35. Qxd8 {[%emt 0:00:00]} Qxd8 {[%emt 0:00:54]} 36. Nxd8 {[%emt 0:00:00]} Rd7 {[%emt 0:00:06]} 37. Rd1 {[%emt 0:00:00]} Rxd8 {[%emt 0:00:18]} 38. Re3 {[%emt 0:00:00]} Rd4 {[%emt 0:00:40]} 39. e6 {[%emt 0:00:00]} Nd5 {[%emt 0:00:39]} 40. Re2 {[%emt 0:00:00]} a3 {[%emt 0:00:39]} 41. Rexd2 {[%emt 0:00:00]} axb2 {[%emt 0:00:26]} 42. Rxd4 {[%emt 0:00:00]} c3 {[%emt 0:00:01]} 43. e7 {[%emt 0:00:00]} Nxe7 {[%emt 0:00:14]} 44. Rd7 {[%emt 0:00:00]} c2 {[%emt 0:00:43]} 45. Rxe7+ {[%emt 0:00:00]} Kg8 {[%emt 0:00:18]} 46. Rd8# {[%emt 0:00:00]} 1-0